[Event "*** Titled Tuesday Blitz"]
[Site "Chess.com"]
[Date "2020.10.20"]
[Round "6"]
[White "kuban1991"]
[Black "Alexander_Zubov"]
[Result "0-1"]
[WhiteElo "2821"]
[BlackElo "2925"]
[TimeControl "180+1"]
[EndTime "11:10:08 PDT"]
[Termination "Alexander_Zubov won on time"]

1. Nf3 {[%clk 0:02:58.9]} 1... d5 {[%clk 0:02:59.7]} 2. g3 {[%clk 0:02:59.3]}
2... g6 {[%clk 0:02:59.9]} 3. Bg2 {[%clk 0:02:59.7]} 3... Bg7 {[%clk 0:03:00.2]}
4. d4 {[%clk 0:03:00.6]} 4... c6 {[%clk 0:02:59]} 5. O-O {[%clk 0:03:01.1]} 5...
Nf6 {[%clk 0:02:59.4]} 6. Nbd2 {[%clk 0:03:01.8]} 6... O-O {[%clk 0:02:59]} 7.
b3 {[%clk 0:03:02.7]} 7... Bf5 {[%clk 0:02:57.9]} 8. Bb2 {[%clk 0:03:02.5]} 8...
a5 {[%clk 0:02:48.1]} 9. c4 {[%clk 0:03:02.6]} 9... Ne4 {[%clk 0:02:43.6]} 10.
e3 {[%clk 0:02:58.9]} 10... Nd7 {[%clk 0:02:35.7]} 11. Nh4 {[%clk 0:02:58]}
11... Nxd2 {[%clk 0:02:35.6]} 12. Qxd2 {[%clk 0:02:58.9]} 12... Be6 {[%clk
0:02:35]} 13. f4 {[%clk 0:02:54.9]} 13... Nf6 {[%clk 0:02:23.9]} 14. f5 {[%clk
0:02:53.6]} 14... Bc8 {[%clk 0:02:23.4]} 15. cxd5 {[%clk 0:02:47.9]} 15... cxd5
{[%clk 0:02:22.6]} 16. fxg6 {[%clk 0:02:30.1]} 16... hxg6 {[%clk 0:02:21.9]} 17.
Rac1 {[%clk 0:02:29.6]} 17... a4 {[%clk 0:02:21]} 18. Qb4 {[%clk 0:02:05.8]}
18... Bh6 {[%clk 0:02:18]} 19. Rc3 {[%clk 0:02:02]} 19... axb3 {[%clk
0:01:55.5]} 20. Qxb3 {[%clk 0:01:58.5]} 20... Qa5 {[%clk 0:01:54.6]} 21. a3
{[%clk 0:01:53.6]} 21... Ra6 {[%clk 0:01:44.7]} 22. Rc5 {[%clk 0:01:50.6]} 22...
Qd8 {[%clk 0:01:30.5]} 23. Bc1 {[%clk 0:01:46.8]} 23... Rb6 {[%clk 0:01:22.7]}
24. Qa2 {[%clk 0:01:40.5]} 24... Be6 {[%clk 0:01:17.1]} 25. a4 {[%clk
0:01:34.5]} 25... Ne4 {[%clk 0:01:13.7]} 26. Bxe4 {[%clk 0:01:18.4]} 26... dxe4
{[%clk 0:01:13.5]} 27. d5 {[%clk 0:01:15.5]} 27... Bh3 {[%clk 0:01:04.3]} 28.
Re1 {[%clk 0:01:12.1]} 28... Qd7 {[%clk 0:00:58.5]} 29. Qc4 {[%clk 0:01:02.7]}
29... Qg4 {[%clk 0:00:47.1]} 30. a5 {[%clk 0:00:54.3]} 30... Rd6 {[%clk
0:00:33.5]} 31. Bb2 {[%clk 0:00:48.9]} 31... Rfd8 {[%clk 0:00:22.8]} 32. Qc3
{[%clk 0:00:46.1]} 32... Rf6 {[%clk 0:00:18.5]} 33. Rc7 {[%clk 0:00:34.4]} 33...
Bg7 {[%clk 0:00:16.9]} 34. Qd2 {[%clk 0:00:28.4]} 34... Rfd6 {[%clk 0:00:16.3]}
35. Bxg7 {[%clk 0:00:28.7]} 35... Kxg7 {[%clk 0:00:17]} 36. Rc5 {[%clk
0:00:21.4]} 36... Kg8 {[%clk 0:00:16.1]} 37. Ng2 {[%clk 0:00:17.1]} 37... g5
{[%clk 0:00:15.7]} 38. Rf1 {[%clk 0:00:12.8]} 38... f6 {[%clk 0:00:14.9]} 39.
Qd4 {[%clk 0:00:11.2]} 39... Kf7 {[%clk 0:00:14.6]} 40. Qc4 {[%clk 0:00:10.7]}
40... R8d7 {[%clk 0:00:14.1]} 41. Rb5 {[%clk 0:00:10.6]} 41... Kg6 {[%clk
0:00:14]} 42. Rc5 {[%clk 0:00:10.6]} 42... Kf7 {[%clk 0:00:12.2]} 43. Rb5 {[%clk
0:00:10.9]} 43... Qh5 {[%clk 0:00:12]} 44. Qxe4 {[%clk 0:00:09.1]} 44... Qe2
{[%clk 0:00:12.1]} 45. Rc5 {[%clk 0:00:07.2]} 45... Bxg2 {[%clk 0:00:11.7]} 46.
Qxg2 {[%clk 0:00:06.6]} 46... Qxe3+ {[%clk 0:00:11.5]} 47. Qf2 {[%clk
0:00:07.3]} 47... Qxf2+ {[%clk 0:00:11.8]} 48. Rxf2 {[%clk 0:00:08.2]} 48...
Rxd5 {[%clk 0:00:12.6]} 49. Rxd5 {[%clk 0:00:08.6]} 49... Rxd5 {[%clk
0:00:13.5]} 50. Rb2 {[%clk 0:00:08.9]} 50... Rxa5 {[%clk 0:00:13.6]} 51. Rxb7
{[%clk 0:00:09.3]} 51... Ra2 {[%clk 0:00:14.2]} 52. g4 {[%clk 0:00:08.2]} 52...
Ke6 {[%clk 0:00:12.5]} 53. Rb5 {[%clk 0:00:07.5]} 53... Re2 {[%clk 0:00:11.1]}
54. h3 {[%clk 0:00:07.7]} 54... Re5 {[%clk 0:00:11.3]} 55. Rb7 {[%clk
0:00:08.3]} 55... Kd5 {[%clk 0:00:12.2]} 56. Kf2 {[%clk 0:00:08.7]} 56... Ke4
{[%clk 0:00:13.1]} 57. Rb4+ {[%clk 0:00:08.7]} 57... Kd3 {[%clk 0:00:13.6]} 58.
Kf3 {[%clk 0:00:09.3]} 58... Re3+ {[%clk 0:00:13.1]} 59. Kg2 {[%clk 0:00:10.1]}
59... Re4 {[%clk 0:00:11.9]} 60. Rb3+ {[%clk 0:00:10]} 60... Kd4 {[%clk
0:00:12.8]} 61. Kf3 {[%clk 0:00:10.2]} 61... Rf4+ {[%clk 0:00:13.2]} 62. Kg3
{[%clk 0:00:10.7]} 62... e5 {[%clk 0:00:14.1]} 63. Ra3 {[%clk 0:00:05.9]} 63...
e4 {[%clk 0:00:13.8]} 64. h4 {[%clk 0:00:06.6]} 64... e3 {[%clk 0:00:13.3]} 65.
h5 {[%clk 0:00:07.3]} 65... e2 {[%clk 0:00:13.2]} 0-1

[Event "*** Titled Tuesday Blitz"]
[Site "Chess.com"]
[Date "2020.10.20"]
[Round "6"]
[White "Unknown_IM"]
[Black "Sadykov_Ramil"]
[Result "0-1"]
[WhiteElo "2372"]
[BlackElo "2550"]
[TimeControl "180+1"]
[EndTime "11:10:16 PDT"]
[Termination "Sadykov_Ramil won by checkmate"]

1. e4 {[%clk 0:03:00.9]} 1... e5 {[%clk 0:02:57.6]} 2. Nf3 {[%clk 0:02:54.3]}
2... Nf6 {[%clk 0:02:53.4]} 3. Nc3 {[%clk 0:02:47.7]} 3... Bb4 {[%clk 0:02:47]}
4. Be2 {[%clk 0:02:31.1]} 4... d6 {[%clk 0:02:28.3]} 5. d3 {[%clk 0:02:26.6]}
5... h6 {[%clk 0:02:20.6]} 6. O-O {[%clk 0:02:25.2]} 6... O-O {[%clk 0:02:19.5]}
7. a3 {[%clk 0:02:19.6]} 7... Bxc3 {[%clk 0:02:17.3]} 8. bxc3 {[%clk 0:02:19.6]}
8... Nc6 {[%clk 0:02:14.8]} 9. h3 {[%clk 0:02:13.7]} 9... d5 {[%clk 0:02:13]}
10. exd5 {[%clk 0:02:12]} 10... Nxd5 {[%clk 0:02:12.5]} 11. Bd2 {[%clk
0:02:11.8]} 11... Re8 {[%clk 0:02:09.6]} 12. Re1 {[%clk 0:01:50.6]} 12... Bf5
{[%clk 0:02:03.5]} 13. Bf1 {[%clk 0:01:45.2]} 13... e4 {[%clk 0:01:48]} 14. Nh2
{[%clk 0:01:17.7]} 14... Qf6 {[%clk 0:01:22.9]} 15. d4 {[%clk 0:00:59.3]} 15...
Qg6 {[%clk 0:01:19.6]} 16. Kh1 {[%clk 0:00:55.2]} 16... e3 {[%clk 0:01:14.2]}
17. fxe3 {[%clk 0:00:50.3]} 17... Bxc2 {[%clk 0:01:13.2]} 18. Qg4 {[%clk
0:00:49.3]} 18... Nf6 {[%clk 0:01:08.9]} 19. Qxg6 {[%clk 0:00:42.8]} 19... Bxg6
{[%clk 0:01:09.8]} 20. Nf3 {[%clk 0:00:36]} 20... Ne4 {[%clk 0:01:08]} 21. Bb5
{[%clk 0:00:20.5]} 21... f6 {[%clk 0:00:49.5]} 22. Ra2 {[%clk 0:00:16]} 22... a6
{[%clk 0:00:42.9]} 23. Bc4+ {[%clk 0:00:12.4]} 23... Bf7 {[%clk 0:00:40.5]} 24.
Bxf7+ {[%clk 0:00:12]} 24... Kxf7 {[%clk 0:00:41.4]} 25. Rb2 {[%clk 0:00:12.4]}
25... Na5 {[%clk 0:00:41.2]} 26. Ra2 {[%clk 0:00:04]} 26... b5 {[%clk
0:00:39.9]} 27. Bc1 {[%clk 0:00:04.1]} 27... Nc4 {[%clk 0:00:39.3]} 28. Nd2
{[%clk 0:00:03.1]} 28... Ncxd2 {[%clk 0:00:17.1]} 29. Bxd2 {[%clk 0:00:04]}
29... f5 {[%clk 0:00:14.5]} 30. Rc2 {[%clk 0:00:03.9]} 30... Nd6 {[%clk
0:00:13.8]} 31. Bc1 {[%clk 0:00:03.2]} 31... a5 {[%clk 0:00:13.4]} 32. a4 {[%clk
0:00:02.9]} 32... bxa4 {[%clk 0:00:13.2]} 33. c4 {[%clk 0:00:02.9]} 33... Reb8
{[%clk 0:00:11.6]} 34. c5 {[%clk 0:00:03.1]} 34... Ne4 {[%clk 0:00:11.6]} 35.
Ra2 {[%clk 0:00:03.1]} 35... Rb4 {[%clk 0:00:12]} 36. Ba3 {[%clk 0:00:02.7]}
36... Rb3 {[%clk 0:00:11.7]} 37. Bb2 {[%clk 0:00:03.2]} 37... Rab8 {[%clk
0:00:10.9]} 38. Ba1 {[%clk 0:00:02.1]} 38... a3 {[%clk 0:00:11]} 39. Rg1 {[%clk
0:00:01.5]} 39... Ke6 {[%clk 0:00:09.1]} 40. Kh2 {[%clk 0:00:02.4]} 40... Rxe3
{[%clk 0:00:08.4]} 41. Rd1 {[%clk 0:00:01.8]} 41... Kd5 {[%clk 0:00:08.3]} 42.
Rc2 {[%clk 0:00:01.8]} 42... Rbb3 {[%clk 0:00:07.1]} 43. c6 {[%clk 0:00:02.3]}
43... Rbd3 {[%clk 0:00:04.7]} 44. Rf1 {[%clk 0:00:02.6]} 44... Rd2 {[%clk
0:00:04]} 45. Rxf5+ {[%clk 0:00:02.5]} 45... Ke6 {[%clk 0:00:04.3]} 46. Re5+
{[%clk 0:00:03.1]} 46... Kd6 {[%clk 0:00:03.3]} 47. Rxd2 {[%clk 0:00:04]} 47...
Nxd2 {[%clk 0:00:03.1]} 48. Rxe3 {[%clk 0:00:04.5]} 48... Nf1+ {[%clk
0:00:03.8]} 49. Kg1 {[%clk 0:00:03]} 49... Nxe3 {[%clk 0:00:04.7]} 50. Kf2
{[%clk 0:00:03.7]} 50... Nc2 {[%clk 0:00:05.1]} 51. Bc3 {[%clk 0:00:03.5]} 51...
a2 {[%clk 0:00:05.5]} 52. d5 {[%clk 0:00:04.4]} 52... a1=Q {[%clk 0:00:05]} 53.
Bxa1 {[%clk 0:00:05.1]} 53... Nxa1 {[%clk 0:00:05.7]} 54. Ke3 {[%clk 0:00:06]}
54... Kxd5 {[%clk 0:00:06.4]} 55. Kf4 {[%clk 0:00:06.8]} 55... Ke6 {[%clk
0:00:05.8]} 56. Ke4 {[%clk 0:00:06.4]} 56... Nb3 {[%clk 0:00:05.8]} 57. Kd3
{[%clk 0:00:07.3]} 57... Nc5+ {[%clk 0:00:04.9]} 58. Kc4 {[%clk 0:00:08.2]}
58... Kd6 {[%clk 0:00:04.9]} 59. Kb5 {[%clk 0:00:09.1]} 59... a4 {[%clk
0:00:04.9]} 60. Kb4 {[%clk 0:00:08.5]} 60... Kxc6 {[%clk 0:00:05.8]} 61. g4
{[%clk 0:00:09.4]} 61... Kd5 {[%clk 0:00:06.1]} 62. h4 {[%clk 0:00:10.3]} 62...
Ne4 {[%clk 0:00:05.6]} 63. g5 {[%clk 0:00:11.2]} 63... hxg5 {[%clk 0:00:05.1]}
64. hxg5 {[%clk 0:00:12.1]} 64... Nxg5 {[%clk 0:00:05.9]} 65. Kxa4 {[%clk
0:00:13]} 65... c5 {[%clk 0:00:06.2]} 66. Kb3 {[%clk 0:00:12.8]} 66... Kd4
{[%clk 0:00:07.1]} 67. Kc2 {[%clk 0:00:13.7]} 67... c4 {[%clk 0:00:07.5]} 68.
Kd2 {[%clk 0:00:14.6]} 68... c3+ {[%clk 0:00:08.4]} 69. Kc2 {[%clk 0:00:15.1]}
69... Nf3 {[%clk 0:00:08.6]} 70. Kd1 {[%clk 0:00:16]} 70... Kd3 {[%clk
0:00:09.1]} 71. Kc1 {[%clk 0:00:16.9]} 71... Nd4 {[%clk 0:00:09.4]} 72. Kd1
{[%clk 0:00:17.2]} 72... c2+ {[%clk 0:00:09.9]} 73. Kc1 {[%clk 0:00:18.1]} 73...
Ne2+ {[%clk 0:00:10.5]} 74. Kb2 {[%clk 0:00:19]} 74... c1=Q+ {[%clk 0:00:11.4]}
75. Ka2 {[%clk 0:00:19.9]} 75... Qc7 {[%clk 0:00:10.7]} 76. Kb3 {[%clk
0:00:20.5]} 76... g5 {[%clk 0:00:11]} 77. Ka2 {[%clk 0:00:21.4]} 77... g4 {[%clk
0:00:11.9]} 78. Kb3 {[%clk 0:00:22.2]} 78... g3 {[%clk 0:00:12.8]} 79. Ka2
{[%clk 0:00:23.1]} 79... g2 {[%clk 0:00:13.2]} 80. Kb3 {[%clk 0:00:24]} 80...
g1=Q {[%clk 0:00:13.6]} 81. Ka4 {[%clk 0:00:24.4]} 81... Qgb6 {[%clk 0:00:14]}
82. Ka3 {[%clk 0:00:24.6]} 82... Qca7# {[%clk 0:00:12.9]} 0-1

[Event "*** Titled Tuesday Blitz"]
[Site "Chess.com"]
[Date "2020.10.20"]
[Round "6"]
[White "Zhigalko_Sergei"]
[Black "SantoBlue"]
[Result "0-1"]
[WhiteElo "2924"]
[BlackElo "2788"]
[TimeControl "180+1"]
[EndTime "11:10:30 PDT"]
[Termination "SantoBlue won on time"]

1. e4 {[%clk 0:03:00.9]} 1... d6 {[%clk 0:02:58.2]} 2. d4 {[%clk 0:03:00.9]}
2... Nf6 {[%clk 0:02:58.3]} 3. Nc3 {[%clk 0:03:01.2]} 3... g6 {[%clk 0:02:58.5]}
4. Nf3 {[%clk 0:03:01.4]} 4... Bg7 {[%clk 0:02:58.2]} 5. h3 {[%clk 0:03:01.7]}
5... O-O {[%clk 0:02:58.3]} 6. Be3 {[%clk 0:03:01.3]} 6... c6 {[%clk 0:02:53.8]}
7. a4 {[%clk 0:03:01.1]} 7... Qc7 {[%clk 0:02:53.9]} 8. a5 {[%clk 0:03:00.3]}
8... e5 {[%clk 0:02:53.2]} 9. dxe5 {[%clk 0:03:00.7]} 9... dxe5 {[%clk
0:02:53.1]} 10. Bc4 {[%clk 0:03:01.1]} 10... Rd8 {[%clk 0:02:50.3]} 11. Qb1
{[%clk 0:02:59.3]} 11... h6 {[%clk 0:02:45.5]} 12. Qa2 {[%clk 0:02:57.7]} 12...
Na6 {[%clk 0:02:44.4]} 13. O-O {[%clk 0:02:54]} 13... Re8 {[%clk 0:02:35.6]} 14.
Nh4 {[%clk 0:02:32.4]} 14... Be6 {[%clk 0:02:27.5]} 15. Bxe6 {[%clk 0:01:59]}
15... Rxe6 {[%clk 0:02:26.7]} 16. Rfd1 {[%clk 0:01:55.4]} 16... Qe7 {[%clk
0:02:18.9]} 17. Nf3 {[%clk 0:01:28.8]} 17... g5 {[%clk 0:02:18.8]} 18. Nh2
{[%clk 0:01:22.8]} 18... Nc5 {[%clk 0:02:04.4]} 19. Qc4 {[%clk 0:01:21.1]} 19...
Ncd7 {[%clk 0:02:04.6]} 20. Nf1 {[%clk 0:01:19.6]} 20... Nh5 {[%clk 0:01:56.8]}
21. Ng3 {[%clk 0:01:12.1]} 21... Nxg3 {[%clk 0:01:54.9]} 22. fxg3 {[%clk
0:01:13]} 22... g4 {[%clk 0:01:47.2]} 23. h4 {[%clk 0:00:58]} 23... Nf6 {[%clk
0:01:46]} 24. Rf1 {[%clk 0:00:56.1]} 24... Nh5 {[%clk 0:01:45.7]} 25. Kh2 {[%clk
0:00:55.5]} 25... Rf6 {[%clk 0:01:39.4]} 26. Rad1 {[%clk 0:00:40.2]} 26... Re8
{[%clk 0:01:34.5]} 27. Bxa7 {[%clk 0:00:36.4]} 27... Nf4 {[%clk 0:01:18]} 28.
Bc5 {[%clk 0:00:33.4]} 28... Qe6 {[%clk 0:01:05.8]} 29. Qxe6 {[%clk 0:00:24.6]}
29... Nxe6 {[%clk 0:01:06.3]} 30. Rxf6 {[%clk 0:00:24]} 30... Bxf6 {[%clk
0:01:07.2]} 31. Na4 {[%clk 0:00:23.6]} 31... Nd4 {[%clk 0:00:46.3]} 32. c3
{[%clk 0:00:21.5]} 32... Nb3 {[%clk 0:00:32.7]} 33. Bb6 {[%clk 0:00:21.8]} 33...
Bg7 {[%clk 0:00:28.3]} 34. Nc5 {[%clk 0:00:19.3]} 34... Nxc5 {[%clk 0:00:27.5]}
35. Bxc5 {[%clk 0:00:20.2]} 35... f5 {[%clk 0:00:22.6]} 36. Rd7 {[%clk
0:00:16.9]} 36... Bf8 {[%clk 0:00:18.3]} 37. Bxf8 {[%clk 0:00:15.8]} 37... Kxf8
{[%clk 0:00:18.2]} 38. exf5 {[%clk 0:00:13.7]} 38... e4 {[%clk 0:00:18.2]} 39.
Kg1 {[%clk 0:00:13.3]} 39... Re5 {[%clk 0:00:18.4]} 40. Kf2 {[%clk 0:00:09.8]}
40... Rxa5 {[%clk 0:00:16.9]} 41. Rxb7 {[%clk 0:00:06.3]} 41... Rxf5+ {[%clk
0:00:17.5]} 42. Ke3 {[%clk 0:00:07]} 42... Re5 {[%clk 0:00:15.4]} 43. Rc7 {[%clk
0:00:06.2]} 43... c5 {[%clk 0:00:14.9]} 44. c4 {[%clk 0:00:06.5]} 44... h5
{[%clk 0:00:15.2]} 45. Rd7 {[%clk 0:00:05.4]} 45... Re6 {[%clk 0:00:13.4]} 46.
Rd5 {[%clk 0:00:05.2]} 46... Rb6 {[%clk 0:00:14]} 47. Rxc5 {[%clk 0:00:03.2]}
47... Rxb2 {[%clk 0:00:14.5]} 48. Rxh5 {[%clk 0:00:02.8]} 48... Rxg2 {[%clk
0:00:15]} 49. Kf4 {[%clk 0:00:02.2]} 49... Rc2 {[%clk 0:00:02.9]} 50. Re5 {[%clk
0:00:02.8]} 50... Rxc4 {[%clk 0:00:03.2]} 51. Rxe4 {[%clk 0:00:03.4]} 51... Rc6
{[%clk 0:00:03.8]} 52. Kxg4 {[%clk 0:00:03.6]} 52... Kf7 {[%clk 0:00:04.7]} 53.
Rf4+ {[%clk 0:00:03.7]} 53... Kg6 {[%clk 0:00:05.6]} 54. Ra4 {[%clk 0:00:03.7]}
54... Rb6 {[%clk 0:00:05.9]} 55. Kh3 {[%clk 0:00:03.8]} 55... Kh6 {[%clk
0:00:06.3]} 56. Ra3 {[%clk 0:00:03.7]} 56... Rb4 {[%clk 0:00:06.6]} 57. Rf3
{[%clk 0:00:03.7]} 57... Rb6 {[%clk 0:00:07.5]} 58. Rf4 {[%clk 0:00:04]} 58...
Ra6 {[%clk 0:00:08.1]} 59. Re4 {[%clk 0:00:04.2]} 59... Rb6 {[%clk 0:00:08.7]}
60. Kg4 {[%clk 0:00:04.6]} 60... Ra6 {[%clk 0:00:09.3]} 61. Kf5 {[%clk 0:00:05]}
61... Ra5+ {[%clk 0:00:09.4]} 62. Re5 {[%clk 0:00:05.2]} 62... Ra3 {[%clk
0:00:09.6]} 63. g4 {[%clk 0:00:05]} 63... Rf3+ {[%clk 0:00:09.2]} 64. Ke4 {[%clk
0:00:05.2]} 64... Rf1 {[%clk 0:00:09.7]} 65. Re6+ {[%clk 0:00:05.5]} 65... Kg7
{[%clk 0:00:09.9]} 66. h5 {[%clk 0:00:05.9]} 66... Kf7 {[%clk 0:00:10]} 67. Ra6
{[%clk 0:00:05.8]} 67... Kg7 {[%clk 0:00:10.3]} 68. g5 {[%clk 0:00:05]} 68...
Kh7 {[%clk 0:00:10.4]} 69. Ra7+ {[%clk 0:00:05.3]} 69... Kg8 {[%clk 0:00:11.1]}
70. h6 {[%clk 0:00:05.8]} 70... Rb1 {[%clk 0:00:08.9]} 71. Kf5 {[%clk
0:00:05.1]} 71... Rb5+ {[%clk 0:00:08.5]} 72. Kg4 {[%clk 0:00:05.4]} 72... Rb1
{[%clk 0:00:06.8]} 0-1

[Event "*** Titled Tuesday Blitz"]
[Site "Chess.com"]
[Date "2020.10.20"]
[Round "6"]
[White "akanga001"]
[Black "Yoshikrov"]
[Result "0-1"]
[WhiteElo "1875"]
[BlackElo "2130"]
[TimeControl "180+1"]
[EndTime "11:10:40 PDT"]
[Termination "Yoshikrov won by checkmate"]

1. d4 {[%clk 0:03:00.9]} 1... Nf6 {[%clk 0:02:59.8]} 2. c4 {[%clk 0:03:00]} 2...
g6 {[%clk 0:02:59.8]} 3. Nc3 {[%clk 0:02:59.1]} 3... d5 {[%clk 0:03:00]} 4. cxd5
{[%clk 0:02:58.7]} 4... Nxd5 {[%clk 0:02:59.8]} 5. e4 {[%clk 0:02:59.6]} 5...
Nxc3 {[%clk 0:03:00.1]} 6. bxc3 {[%clk 0:03:00.5]} 6... Bg7 {[%clk 0:03:00.4]}
7. Nf3 {[%clk 0:03:00.9]} 7... O-O {[%clk 0:03:00.7]} 8. Be2 {[%clk 0:03:01.3]}
8... c5 {[%clk 0:02:59.4]} 9. O-O {[%clk 0:03:00.3]} 9... Bg4 {[%clk 0:02:59]}
10. Qd3 {[%clk 0:02:59.3]} 10... Nc6 {[%clk 0:02:57.4]} 11. Rd1 {[%clk
0:02:52.7]} 11... cxd4 {[%clk 0:02:41.7]} 12. cxd4 {[%clk 0:02:51.6]} 12... Qa5
{[%clk 0:02:32]} 13. Rb1 {[%clk 0:02:48.9]} 13... b6 {[%clk 0:02:19.1]} 14. d5
{[%clk 0:02:34]} 14... Nb4 {[%clk 0:01:28.6]} 15. Qd2 {[%clk 0:02:28.6]} 15...
Nxa2 {[%clk 0:01:14]} 16. Qxa5 {[%clk 0:02:21.8]} 16... bxa5 {[%clk 0:01:14.4]}
17. Bb2 {[%clk 0:02:21.1]} 17... Bxb2 {[%clk 0:01:10.5]} 18. Rxb2 {[%clk
0:02:19.4]} 18... Nc3 {[%clk 0:01:10.7]} 19. Ra1 {[%clk 0:02:12.7]} 19... Nxe4
{[%clk 0:01:05.3]} 20. Rxa5 {[%clk 0:02:09.3]} 20... Nd6 {[%clk 0:01:02.9]} 21.
h3 {[%clk 0:02:07.9]} 21... Bxf3 {[%clk 0:00:58.6]} 22. gxf3 {[%clk 0:02:07.7]}
22... Rfc8 {[%clk 0:00:57.2]} 23. Kg2 {[%clk 0:02:06.2]} 23... Rc1 {[%clk
0:00:54.9]} 24. Rba2 {[%clk 0:02:04.9]} 24... Rc7 {[%clk 0:00:52.4]} 25. Ra6
{[%clk 0:01:57.8]} 25... Kf8 {[%clk 0:00:49.6]} 26. Rc6 {[%clk 0:01:53.9]} 26...
Rd7 {[%clk 0:00:44.4]} 27. Raa6 {[%clk 0:01:38.2]} 27... Ke8 {[%clk 0:00:40.4]}
28. Kg3 {[%clk 0:01:34.4]} 28... Kd8 {[%clk 0:00:40.3]} 29. Kf4 {[%clk
0:01:31.1]} 29... Rb7 {[%clk 0:00:36.3]} 30. Kg5 {[%clk 0:01:27.8]} 30... h5
{[%clk 0:00:34.2]} 31. Kh6 {[%clk 0:01:26.7]} 31... Rb2 {[%clk 0:00:32.6]} 32.
Bd3 {[%clk 0:01:19.4]} 32... Rxf2 {[%clk 0:00:32.2]} 33. Be4 {[%clk 0:01:10.7]}
33... Re2 {[%clk 0:00:28.3]} 34. Ra4 {[%clk 0:01:06.8]} 34... Kd7 {[%clk
0:00:24.9]} 35. Rca6 {[%clk 0:01:06.3]} 35... Nxe4 {[%clk 0:00:21.8]} 36. fxe4
{[%clk 0:01:04.4]} 36... Re3 {[%clk 0:00:20.3]} 37. h4 {[%clk 0:01:03.1]} 37...
Rh3 {[%clk 0:00:18.3]} 38. Kg5 {[%clk 0:01:01.7]} 38... Rg3+ {[%clk 0:00:18.1]}
39. Kf4 {[%clk 0:01:00.2]} 39... Rg4+ {[%clk 0:00:18.4]} 40. Ke5 {[%clk
0:01:00.4]} 40... f6+ {[%clk 0:00:18.5]} 41. Kd4 {[%clk 0:00:59.3]} 41... Rxh4
{[%clk 0:00:18.9]} 42. Kc5 {[%clk 0:00:58.5]} 42... Rc8+ {[%clk 0:00:14.9]} 43.
Kd4 {[%clk 0:00:57.4]} 43... Rh1 {[%clk 0:00:14]} 44. Rxa7+ {[%clk 0:00:57.2]}
44... Rc7 {[%clk 0:00:14.6]} 45. Rxc7+ {[%clk 0:00:55.5]} 45... Kxc7 {[%clk
0:00:15.5]} 46. Ra7+ {[%clk 0:00:55.5]} 46... Kd6 {[%clk 0:00:15.9]} 47. Ra6+
{[%clk 0:00:55.3]} 47... Kd7 {[%clk 0:00:16.5]} 48. Ra7+ {[%clk 0:00:55.5]}
48... Ke8 {[%clk 0:00:17]} 49. Ra8+ {[%clk 0:00:52.9]} 49... Kf7 {[%clk
0:00:17]} 50. Ra7 {[%clk 0:00:52.9]} 50... Rd1+ {[%clk 0:00:14.8]} 51. Ke3
{[%clk 0:00:52.6]} 51... h4 {[%clk 0:00:15]} 52. Kf3 {[%clk 0:00:52.4]} 52... g5
{[%clk 0:00:15.2]} 53. Kg4 {[%clk 0:00:47.1]} 53... Rd3 {[%clk 0:00:14.4]} 54.
Kf5 {[%clk 0:00:43.5]} 54... Rf3+ {[%clk 0:00:14.1]} 55. Kg4 {[%clk 0:00:42.4]}
55... Rf4+ {[%clk 0:00:14.6]} 56. Kh3 {[%clk 0:00:40.2]} 56... Rxe4 {[%clk
0:00:14.9]} 57. d6 {[%clk 0:00:40.4]} 57... Ke8 {[%clk 0:00:13.9]} 58. d7+
{[%clk 0:00:36]} 58... Kd8 {[%clk 0:00:13.6]} 59. Kh2 {[%clk 0:00:34.1]} 59...
Rd4 {[%clk 0:00:13.5]} 60. Kh3 {[%clk 0:00:30.1]} 60... Rxd7 {[%clk 0:00:13.5]}
61. Ra8+ {[%clk 0:00:30.1]} 61... Kc7 {[%clk 0:00:13.9]} 62. Kg4 {[%clk
0:00:28.1]} 62... Rd4+ {[%clk 0:00:12.8]} 63. Kh3 {[%clk 0:00:26.9]} 63... Rf4
{[%clk 0:00:12.2]} 64. Ra7+ {[%clk 0:00:26.2]} 64... Kd6 {[%clk 0:00:12.6]} 65.
Ra6+ {[%clk 0:00:26.4]} 65... Ke5 {[%clk 0:00:12.9]} 66. Ra5+ {[%clk 0:00:26.3]}
66... Ke6 {[%clk 0:00:11.6]} 67. Ra6+ {[%clk 0:00:26.3]} 67... Kf5 {[%clk
0:00:12.1]} 68. Ra5+ {[%clk 0:00:24.8]} 68... e5 {[%clk 0:00:12.4]} 69. Ra6
{[%clk 0:00:23.8]} 69... Rf3+ {[%clk 0:00:12.5]} 70. Kh2 {[%clk 0:00:23.3]}
70... Rb3 {[%clk 0:00:13.2]} 71. Ra4 {[%clk 0:00:21.6]} 71... g4 {[%clk
0:00:13.2]} 72. Kh1 {[%clk 0:00:20.6]} 72... Rb2 {[%clk 0:00:13.2]} 73. Ra3
{[%clk 0:00:20]} 73... e4 {[%clk 0:00:13.4]} 74. Ra5+ {[%clk 0:00:19.4]} 74...
Kf4 {[%clk 0:00:13.4]} 75. Ra6 {[%clk 0:00:19.5]} 75... f5 {[%clk 0:00:13.9]}
76. Ra3 {[%clk 0:00:18.8]} 76... h3 {[%clk 0:00:14]} 77. Rc3 {[%clk 0:00:16.6]}
77... g3 {[%clk 0:00:14.2]} 78. Rc1 {[%clk 0:00:14]} 78... Kg4 {[%clk
0:00:14.4]} 79. Rg1 {[%clk 0:00:09.7]} 79... f4 {[%clk 0:00:14]} 80. Ra1 {[%clk
0:00:08.6]} 80... e3 {[%clk 0:00:13.9]} 81. Rb1 {[%clk 0:00:08.9]} 81... Rxb1#
{[%clk 0:00:07.2]} 0-1